[Event "Live Chess"]
[Site "Chess.com"]
[Date "2023.05.21"]
[Round "-"]
[White "ProfPoisson"]
[Black "Tiltador"]
[Result "0-1"]
[WhiteElo "1211"]
[BlackElo "935"]
[TimeControl "300"]
[EndTime "8:37:42 PDT"]
[Termination "Tiltador won by resignation"]

1. e4 {[%clk 0:04:51.1]} 1... e5 {[%clk 0:04:58.8]} 2. Nf3 {[%clk 0:04:48.1]}
2... d6 {[%clk 0:04:57.1]} 3. d4 {[%clk 0:04:44.7]} 3... f6 {[%clk 0:04:56]} 4.
dxe5 {[%clk 0:04:41.5]} 4... fxe5 {[%clk 0:04:53.7]} 5. Bg5 {[%clk 0:04:35.4]}
5... Be7 {[%clk 0:04:51.3]} 6. Qd2 {[%clk 0:04:30.5]} 6... h6 {[%clk 0:04:50.2]}
7. Bxe7 {[%clk 0:04:26.1]} 7... Qxe7 {[%clk 0:04:48.3]} 8. Nc3 {[%clk
0:04:25.1]} 8... Nf6 {[%clk 0:04:46.9]} 9. O-O-O {[%clk 0:04:22.5]} 9... O-O
{[%clk 0:04:45.8]} 10. Bc4+ {[%clk 0:04:17.6]} 10... Kh8 {[%clk 0:04:43.3]} 11.
Nh4 {[%clk 0:04:04.5]} 11... Qe8 {[%clk 0:04:27.5]} 12. f4 {[%clk 0:03:51.3]}
12... Be6 {[%clk 0:04:24.2]} 13. Bxe6 {[%clk 0:03:47.8]} 13... Qxe6 {[%clk
0:04:02.8]} 14. f5 {[%clk 0:03:44.4]} 14... Qf7 {[%clk 0:03:54.2]} 15. Ng6+
{[%clk 0:03:42.2]} 15... Kg8 {[%clk 0:03:51.5]} 16. Nd5 {[%clk 0:03:36.3]} 16...
Rd8 {[%clk 0:03:40.4]} 17. Nde7+ {[%clk 0:03:31.3]} 17... Kh7 {[%clk 0:03:34]}
18. Qe3 {[%clk 0:03:20.8]} 18... Qxa2 {[%clk 0:03:30.2]} 19. Qh3 {[%clk
0:03:16.3]} 19... Qa1+ {[%clk 0:03:25.4]} 20. Kd2 {[%clk 0:03:13.2]} 20... Qa5+
{[%clk 0:03:22.9]} 21. c3 {[%clk 0:03:10.3]} 21... Nc6 {[%clk 0:03:18]} 22. Nxc6
{[%clk 0:02:56]} 22... bxc6 {[%clk 0:03:13.6]} 23. Rhe1 {[%clk 0:02:49]} 23...
d5 {[%clk 0:03:07.8]} 24. Kc1 {[%clk 0:02:38.9]} 24... Qa1+ {[%clk 0:03:03.7]}
25. Kc2 {[%clk 0:02:37]} 25... Qa4+ {[%clk 0:03:00.7]} 26. Kb1 {[%clk
0:02:35.4]} 26... d4 {[%clk 0:02:46.5]} 27. g4 {[%clk 0:02:30.9]} 27... dxc3
{[%clk 0:02:40.7]} 28. Rxd8 {[%clk 0:02:27]} 28... Rxd8 {[%clk 0:02:36]} 29.
Qxc3 {[%clk 0:02:24.9]} 29... Rd1+ {[%clk 0:02:30.8]} 30. Rxd1 {[%clk
0:02:22.4]} 30... Qxd1+ {[%clk 0:02:29.7]} 31. Ka2 {[%clk 0:02:18.8]} 31... Qxg4
{[%clk 0:02:23.3]} 32. Qxe5 {[%clk 0:02:16.5]} 32... Nxe4 {[%clk 0:02:14.2]} 33.
Nf8+ {[%clk 0:02:08.8]} 33... Kh8 {[%clk 0:02:02.4]} 34. Ng6+ {[%clk 0:01:46.6]}
34... Kh7 {[%clk 0:01:56]} 35. Qxc7 {[%clk 0:01:43.5]} 35... Qxf5 {[%clk
0:01:49.8]} 36. Qxc6 {[%clk 0:01:32.6]} 36... Qxg6 {[%clk 0:01:44.9]} 37. Qxg6+
{[%clk 0:01:30.8]} 37... Kxg6 {[%clk 0:01:42.7]} 38. b4 {[%clk 0:01:30.7]} 38...
Nc3+ {[%clk 0:01:38.2]} 39. Ka3 {[%clk 0:01:30.6]} 39... Nb5+ {[%clk 0:01:36.4]}
40. Ka4 {[%clk 0:01:28.9]} 40... Nc3+ {[%clk 0:01:34.8]} 41. Ka5 {[%clk
0:01:20.8]} 41... Kf5 {[%clk 0:01:26.2]} 42. b5 {[%clk 0:01:19.3]} 42... Nxb5
{[%clk 0:01:21.2]} 43. Kxb5 {[%clk 0:01:17.7]} 43... g5 {[%clk 0:01:20.6]} 44.
Ka6 {[%clk 0:01:16.4]} 44... h5 {[%clk 0:01:19.6]} 45. Kxa7 {[%clk 0:01:16.3]}
45... h4 {[%clk 0:01:18.8]} 46. Kb6 {[%clk 0:01:15.8]} 46... g4 {[%clk
0:01:18.1]} 47. Kc5 {[%clk 0:01:14.9]} 47... g3 {[%clk 0:01:17.3]} 48. hxg3
{[%clk 0:01:11.4]} 48... hxg3 {[%clk 0:01:16.3]} 49. Kd4 {[%clk 0:01:10.8]}
49... g2 {[%clk 0:01:15.6]} 50. Ke3 {[%clk 0:01:10.3]} 50... g1=Q+ {[%clk
0:01:14.7]} 0-1

[Event "Live Chess"]
[Site "Chess.com"]
[Date "2023.05.21"]
[Round "-"]
[White "DfNn"]
[Black "Dhaydon19"]
[Result "0-1"]
[WhiteElo "1560"]
[BlackElo "2689"]
[TimeControl "300"]
[EndTime "8:37:47 PDT"]
[Termination "Dhaydon19 won by resignation"]

1. e4 {[%clk 0:04:57.1]} 1... c6 {[%clk 0:04:59.6]} 2. f4 {[%clk 0:04:56.3]}
2... d5 {[%clk 0:04:59.3]} 3. exd5 {[%clk 0:04:54.6]} 3... cxd5 {[%clk
0:04:58.4]} 4. Nf3 {[%clk 0:04:53.8]} 4... Nc6 {[%clk 0:04:57.4]} 5. Bb5 {[%clk
0:04:52.2]} 5... Bg4 {[%clk 0:04:55.8]} 6. h3 {[%clk 0:04:48]} 6... Bxf3 {[%clk
0:04:54.5]} 7. Qxf3 {[%clk 0:04:46.3]} 7... e6 {[%clk 0:04:54.1]} 8. d4 {[%clk
0:04:42.8]} 8... Qa5+ {[%clk 0:04:50.2]} 9. Nc3 {[%clk 0:04:38.4]} 9... Bb4
{[%clk 0:04:49.3]} 10. Bxc6+ {[%clk 0:04:35.9]} 10... bxc6 {[%clk 0:04:48.6]}
11. a3 {[%clk 0:04:35.1]} 11... Bd6 {[%clk 0:04:45.7]} 12. O-O {[%clk
0:04:32.5]} 12... Ne7 {[%clk 0:04:44]} 13. g4 {[%clk 0:04:29.1]} 13... O-O
{[%clk 0:04:41.2]} 14. f5 {[%clk 0:04:28]} 14... exf5 {[%clk 0:04:38.7]} 15.
gxf5 {[%clk 0:04:25.9]} 15... f6 {[%clk 0:04:37.7]} 16. Qg2 {[%clk 0:04:17.8]}
16... Qb6 {[%clk 0:04:34.8]} 17. Qg4 {[%clk 0:04:11.1]} 17... h5 {[%clk
0:04:27.3]} 18. Qxh5 {[%clk 0:03:59.4]} 18... Qxd4+ {[%clk 0:04:19.8]} 19. Rf2
{[%clk 0:03:58.4]} 19... Bc5 {[%clk 0:04:17.3]} 20. Qf3 {[%clk 0:03:45.8]} 20...
Qxf2+ {[%clk 0:04:15.4]} 21. Qxf2 {[%clk 0:03:43.6]} 21... Bxf2+ {[%clk
0:04:15]} 22. Kxf2 {[%clk 0:03:43.3]} 22... Nxf5 {[%clk 0:04:14.6]} 23. Kf3
{[%clk 0:03:40.8]} 23... Nd4+ {[%clk 0:04:12.3]} 0-1

[Event "Live Chess"]
[Site "Chess.com"]
[Date "2023.05.21"]
[Round "-"]
[White "Missedidea"]
[Black "Doge_Dandolo"]
[Result "0-1"]
[WhiteElo "1768"]
[BlackElo "1856"]
[TimeControl "300"]
[EndTime "8:37:55 PDT"]
[Termination "Doge_Dandolo won by resignation"]

1. d4 {[%clk 0:04:59]} 1... d5 {[%clk 0:04:58.2]} 2. c4 {[%clk 0:04:57.7]} 2...
c6 {[%clk 0:04:57.2]} 3. Nf3 {[%clk 0:04:55.7]} 3... Nf6 {[%clk 0:04:56.1]} 4.
Nc3 {[%clk 0:04:54.8]} 4... a6 {[%clk 0:04:55.2]} 5. cxd5 {[%clk 0:04:50.7]}
5... cxd5 {[%clk 0:04:54.1]} 6. e3 {[%clk 0:04:49.8]} 6... Bg4 {[%clk 0:04:50]}
7. Be2 {[%clk 0:04:48.6]} 7... e6 {[%clk 0:04:48.6]} 8. Ne5 {[%clk 0:04:46.1]}
8... Bxe2 {[%clk 0:04:46.6]} 9. Qxe2 {[%clk 0:04:43.7]} 9... Nbd7 {[%clk
0:04:45.8]} 10. f4 {[%clk 0:04:39.8]} 10... Be7 {[%clk 0:04:43.5]} 11. O-O
{[%clk 0:04:37.9]} 11... O-O {[%clk 0:04:40.9]} 12. Bd2 {[%clk 0:04:34]} 12...
Rc8 {[%clk 0:04:39.3]} 13. g4 {[%clk 0:04:28.3]} 13... Bb4 {[%clk 0:04:37.2]}
14. g5 {[%clk 0:04:23.8]} 14... Bxc3 {[%clk 0:04:35.8]} 15. gxf6 {[%clk
0:04:20.3]} 15... Bxd2 {[%clk 0:04:31.6]} 16. fxg7 {[%clk 0:04:14]} 16... Re8
{[%clk 0:04:27]} 17. Qxd2 {[%clk 0:04:10.2]} 17... Qh4 {[%clk 0:04:23]} 18. Kh1
{[%clk 0:04:04.3]} 18... Nf6 {[%clk 0:04:18.8]} 19. Rg1 {[%clk 0:03:58.7]} 19...
Ne4 {[%clk 0:04:16.1]} 20. Rg2 {[%clk 0:03:55.3]} 20... Nxd2 {[%clk 0:04:13.5]}
21. Rag1 {[%clk 0:03:42]} 21... f6 {[%clk 0:04:03.1]} 22. Rg4 {[%clk 0:03:33.6]}
22... Qh5 {[%clk 0:03:55.7]} 23. Nd7 {[%clk 0:03:31.5]} 23... Kf7 {[%clk
0:03:41.7]} 24. R1g3 {[%clk 0:03:19.8]} 24... Nf3 {[%clk 0:03:22.2]} 25. h3
{[%clk 0:03:11.5]} 25... Rc1+ {[%clk 0:03:11.4]} 26. Kg2 {[%clk 0:03:10.3]}
26... Nh4+ {[%clk 0:03:08.2]} 27. Kf2 {[%clk 0:03:03]} 27... Rc2+ {[%clk
0:03:05.5]} 28. Ke1 {[%clk 0:02:59.8]} 28... f5 {[%clk 0:02:51.6]} 29. Kd1
{[%clk 0:02:46.4]} 29... fxg4 {[%clk 0:02:47.7]} 30. hxg4 {[%clk 0:02:41.8]}
30... Qh6 {[%clk 0:02:33.1]} 31. Kxc2 {[%clk 0:02:36.1]} 31... Qxg7 {[%clk
0:02:21.6]} 32. Ne5+ {[%clk 0:02:31.4]} 32... Ke7 {[%clk 0:02:19.1]} 33. Rh3
{[%clk 0:02:25.5]} 33... Ng6 {[%clk 0:02:16.9]} 34. Nf3 {[%clk 0:02:17.9]} 34...
Rc8+ {[%clk 0:02:13.5]} 35. Kb3 {[%clk 0:02:15.4]} 35... Ke8 {[%clk 0:02:08.3]}
36. Ng5 {[%clk 0:02:13.9]} 36... Nf8 {[%clk 0:01:59.7]} 37. Rh5 {[%clk
0:02:08.4]} 37... Qc7 {[%clk 0:01:57.4]} 38. a4 {[%clk 0:02:01.3]} 38... Qc4+
{[%clk 0:01:49.7]} 0-1

[Event "Live Chess"]
[Site "Chess.com"]
[Date "2023.05.21"]
[Round "-"]
[White "Long1968"]
[Black "peter-785"]
[Result "1-0"]
[WhiteElo "981"]
[BlackElo "1169"]
[TimeControl "300"]
[EndTime "8:38:02 PDT"]
[Termination "Long1968 won by resignation"]

1. e4 {[%clk 0:04:54.8]} 1... c5 {[%clk 0:04:57.4]} 2. c3 {[%clk 0:04:52.1]}
2... d6 {[%clk 0:04:56.8]} 3. d4 {[%clk 0:04:49.6]} 3... cxd4 {[%clk 0:04:53.4]}
4. cxd4 {[%clk 0:04:47.5]} 4... e6 {[%clk 0:04:52.3]} 5. Nc3 {[%clk 0:04:44.6]}
5... Nf6 {[%clk 0:04:51.7]} 6. Bd3 {[%clk 0:04:38.7]} 6... Be7 {[%clk
0:04:50.9]} 7. Bg5 {[%clk 0:04:34.8]} 7... a6 {[%clk 0:04:48.7]} 8. Qd2 {[%clk
0:04:27.2]} 8... Nfd7 {[%clk 0:04:46.4]} 9. h4 {[%clk 0:04:22.1]} 9... Nc6
{[%clk 0:04:38.5]} 10. Nf3 {[%clk 0:04:11.6]} 10... f6 {[%clk 0:04:18.4]} 11.
Be3 {[%clk 0:04:02.3]} 11... b5 {[%clk 0:04:12.5]} 12. d5 {[%clk 0:03:35.4]}
12... Nb4 {[%clk 0:04:09.5]} 13. a3 {[%clk 0:03:10.9]} 13... Nxd3+ {[%clk
0:04:07.8]} 14. Qxd3 {[%clk 0:03:08.4]} 14... Nc5 {[%clk 0:04:06.6]} 15. Bxc5
{[%clk 0:03:03.9]} 15... dxc5 {[%clk 0:04:05.8]} 16. Rd1 {[%clk 0:02:44.1]}
16... O-O {[%clk 0:03:44.5]} 17. d6 {[%clk 0:02:09.9]} 17... c4 {[%clk
0:02:52.2]} 18. Qd4 {[%clk 0:01:55.9]} 18... Bxd6 {[%clk 0:02:32.5]} 19. Qxd6
{[%clk 0:01:50.8]} 19... Qa5 {[%clk 0:02:20.6]} 20. O-O {[%clk 0:01:31.1]} 20...
Ra7 {[%clk 0:02:10.7]} 21. Qb4 {[%clk 0:01:04.7]} 21... Qc7 {[%clk 0:02:02.1]}
22. Rd2 {[%clk 0:00:49.7]} 22... Bb7 {[%clk 0:01:59.4]} 23. Rfd1 {[%clk
0:00:39.7]} 23... Raa8 {[%clk 0:01:55.9]} 24. Rd7 {[%clk 0:00:29]} 24... Qb6
{[%clk 0:01:53.5]} 25. Qe7 {[%clk 0:00:18.3]} 1-0

[Event "Live Chess"]
[Site "Chess.com"]
[Date "2023.05.21"]
[Round "-"]
[White "zdanevych"]
[Black "EdenHazard8"]
[Result "0-1"]
[WhiteElo "1461"]
[BlackElo "1925"]
[TimeControl "300"]
[EndTime "8:38:14 PDT"]
[Termination "EdenHazard8 won by resignation"]

1. d4 {[%clk 0:04:59.1]} 1... e5 {[%clk 0:04:58.9]} 2. dxe5 {[%clk 0:04:58.2]}
2... Nc6 {[%clk 0:04:58.5]} 3. Nf3 {[%clk 0:04:57.6]} 3... Qe7 {[%clk
0:04:57.5]} 4. Bf4 {[%clk 0:04:57.2]} 4... Qb4+ {[%clk 0:04:56.8]} 5. Bd2 {[%clk
0:04:56.8]} 5... Qxb2 {[%clk 0:04:56.4]} 6. Nc3 {[%clk 0:04:56.4]} 6... Bb4
{[%clk 0:04:53.6]} 7. Rb1 {[%clk 0:04:55.9]} 7... Qa3 {[%clk 0:04:53.2]} 8. Rb3
{[%clk 0:04:55.5]} 8... Qa5 {[%clk 0:04:52.9]} 9. e3 {[%clk 0:04:54.8]} 9...
Nge7 {[%clk 0:04:50.2]} 10. Bd3 {[%clk 0:04:52.7]} 10... h6 {[%clk 0:04:48.2]}
11. O-O {[%clk 0:04:52.1]} 11... O-O {[%clk 0:04:46.9]} 12. Nd4 {[%clk
0:04:48.9]} 12... Nxe5 {[%clk 0:04:45.1]} 13. Ne4 {[%clk 0:04:33.3]} 13... Bxd2
{[%clk 0:04:42.8]} 14. Nxd2 {[%clk 0:04:33.2]} 14... Nxd3 {[%clk 0:04:42]} 15.
cxd3 {[%clk 0:04:30.3]} 15... d5 {[%clk 0:04:40.6]} 16. Rb1 {[%clk 0:04:20.1]}
16... c5 {[%clk 0:04:39.4]} 17. N4b3 {[%clk 0:04:19.2]} 17... Qc7 {[%clk
0:04:38.2]} 18. Qc1 {[%clk 0:04:12.7]} 18... b6 {[%clk 0:04:37.3]} 19. e4 {[%clk
0:04:05.9]} 19... Ba6 {[%clk 0:04:36.2]} 20. Qc3 {[%clk 0:03:54.8]} 20... d4
{[%clk 0:04:33.4]} 21. Qc2 {[%clk 0:03:51.9]} 21... Ng6 {[%clk 0:04:32.1]} 22.
Rfe1 {[%clk 0:03:48.7]} 22... Ne5 {[%clk 0:04:30.5]} 23. Nc4 {[%clk 0:03:46.5]}
23... Nxc4 {[%clk 0:04:30.1]} 24. dxc4 {[%clk 0:03:45.9]} 24... Rad8 {[%clk
0:04:28.8]} 25. Nd2 {[%clk 0:03:41.7]} 25... Bb7 {[%clk 0:04:26.8]} 26. Qd3
{[%clk 0:03:37.6]} 26... Qc6 {[%clk 0:04:25.6]} 27. h3 {[%clk 0:03:32]} 27... f5
{[%clk 0:04:24.2]} 28. Rb2 {[%clk 0:03:23.4]} 28... fxe4 {[%clk 0:04:22.8]} 29.
Nxe4 {[%clk 0:03:22.8]} 29... Qg6 {[%clk 0:04:19.9]} 30. Qg3 {[%clk 0:03:14]}
30... Bxe4 {[%clk 0:04:17.2]} 31. Rxe4 {[%clk 0:03:07.1]} 31... Qxe4 {[%clk
0:04:15.7]} 0-1

[Event "Live Chess"]
[Site "Chess.com"]
[Date "2023.05.21"]
[Round "-"]
[White "ossie57"]
[Black "grillage"]
[Result "0-1"]
[WhiteElo "1833"]
[BlackElo "1791"]
[TimeControl "300"]
[EndTime "8:38:16 PDT"]
[Termination "grillage won by checkmate"]

1. d4 {[%clk 0:04:58.1]} 1... Nf6 {[%clk 0:04:58.1]} 2. Nc3 {[%clk 0:04:57.4]}
2... e6 {[%clk 0:04:57.2]} 3. Bf4 {[%clk 0:04:55]} 3... d5 {[%clk 0:04:56.3]} 4.
e3 {[%clk 0:04:48.3]} 4... a6 {[%clk 0:04:53.6]} 5. a3 {[%clk 0:04:42.4]} 5...
c5 {[%clk 0:04:50.2]} 6. Qf3 {[%clk 0:04:37.5]} 6... cxd4 {[%clk 0:04:46.6]} 7.
exd4 {[%clk 0:04:37.4]} 7... Bd6 {[%clk 0:04:44.3]} 8. Nh3 {[%clk 0:04:27.8]}
8... Nc6 {[%clk 0:04:42.2]} 9. O-O-O {[%clk 0:04:25.8]} 9... b5 {[%clk
0:04:33.1]} 10. g4 {[%clk 0:04:20.4]} 10... b4 {[%clk 0:04:28]} 11. axb4 {[%clk
0:04:17.4]} 11... Nxb4 {[%clk 0:04:22.4]} 12. g5 {[%clk 0:04:11.3]} 12... Bxf4+
{[%clk 0:04:11.8]} 13. Nxf4 {[%clk 0:04:04.6]} 13... Nd7 {[%clk 0:04:03.5]} 14.
h4 {[%clk 0:03:58.9]} 14... Nb6 {[%clk 0:03:56.6]} 15. Bh3 {[%clk 0:03:51.5]}
15... Nc4 {[%clk 0:03:53]} 16. Rhe1 {[%clk 0:03:31.6]} 16... Qa5 {[%clk
0:03:48.5]} 17. Rxe6+ {[%clk 0:03:08.8]} 17... Bxe6 {[%clk 0:03:37.5]} 18. Nxe6
{[%clk 0:03:07.4]} 18... Qa1+ {[%clk 0:03:35.8]} 19. Nb1 {[%clk 0:03:06.9]}
19... Na2# {[%clk 0:03:30.5]} 0-1

[Event "Live Chess"]
[Site "Chess.com"]
[Date "2023.05.21"]
[Round "-"]
[White "youtookmyhorse"]
[Black "PaulyD81"]
[Result "1-0"]
[WhiteElo "784"]
[BlackElo "1105"]
[TimeControl "300"]
[EndTime "8:38:26 PDT"]
[Termination "youtookmyhorse won by checkmate"]

1. e4 {[%clk 0:04:59.5]} 1... d5 {[%clk 0:04:57]} 2. Nc3 {[%clk 0:04:59.1]} 2...
dxe4 {[%clk 0:04:54.5]} 3. Nxe4 {[%clk 0:04:57.9]} 3... Qd5 {[%clk 0:04:36.7]}
4. d3 {[%clk 0:04:53.6]} 4... Qa5+ {[%clk 0:04:21.1]} 5. Bd2 {[%clk 0:04:50.8]}
5... Qe5 {[%clk 0:04:02.3]} 6. c3 {[%clk 0:04:43.4]} 6... Nf6 {[%clk 0:04:00.9]}
7. Nf3 {[%clk 0:04:40.9]} 7... Qe6 {[%clk 0:03:52.9]} 8. Qe2 {[%clk 0:04:37.5]}
8... Nxe4 {[%clk 0:03:45.9]} 9. Qxe4 {[%clk 0:04:35.9]} 9... Qxe4+ {[%clk
0:03:43.7]} 10. dxe4 {[%clk 0:04:35.5]} 10... Bg4 {[%clk 0:03:39.1]} 11. Be2
{[%clk 0:04:33.9]} 11... Bxf3 {[%clk 0:03:33]} 12. Bxf3 {[%clk 0:04:32.7]} 12...
e6 {[%clk 0:03:30.7]} 13. O-O {[%clk 0:04:31.5]} 13... Nd7 {[%clk 0:03:26.3]}
14. Rad1 {[%clk 0:04:31]} 14... e5 {[%clk 0:03:20.3]} 15. Bg4 {[%clk 0:04:28.6]}
15... Nf6 {[%clk 0:03:16.8]} 16. Bf3 {[%clk 0:04:23.2]} 16... Bc5 {[%clk
0:03:01]} 17. Be3 {[%clk 0:04:20.8]} 17... Bxe3 {[%clk 0:02:57.3]} 18. fxe3
{[%clk 0:04:20.4]} 18... O-O {[%clk 0:02:56.1]} 19. Be2 {[%clk 0:04:13]} 19...
a6 {[%clk 0:02:46.6]} 20. Rf5 {[%clk 0:04:11.5]} 20... Rfe8 {[%clk 0:02:39.1]}
21. Bc4 {[%clk 0:04:05.4]} 21... b5 {[%clk 0:02:33.8]} 22. Bb3 {[%clk
0:04:02.8]} 22... c5 {[%clk 0:02:32.5]} 23. a3 {[%clk 0:04:02.5]} 23... c4
{[%clk 0:02:31.3]} 24. Ba2 {[%clk 0:04:02.1]} 24... Ng4 {[%clk 0:01:54.8]} 25.
Rf3 {[%clk 0:03:44.7]} 25... Nf6 {[%clk 0:01:26.1]} 26. h3 {[%clk 0:03:02.5]}
26... Nxe4 {[%clk 0:01:23.5]} 27. Bb1 {[%clk 0:02:52.6]} 27... Nf6 {[%clk
0:01:19.1]} 28. Bf5 {[%clk 0:02:46.8]} 28... Rad8 {[%clk 0:01:11.4]} 29. Rdf1
{[%clk 0:02:42]} 29... Re7 {[%clk 0:01:01.5]} 30. b4 {[%clk 0:02:35.3]} 30... e4
{[%clk 0:00:56.3]} 31. Rf4 {[%clk 0:02:33.4]} 31... Nd5 {[%clk 0:00:37.8]} 32.
Rxe4 {[%clk 0:02:19.3]} 32... Rxe4 {[%clk 0:00:32.2]} 33. Bxe4 {[%clk
0:02:18.3]} 33... Nxc3 {[%clk 0:00:19.6]} 34. Bc2 {[%clk 0:02:08.9]} 34... Nd5
{[%clk 0:00:17.7]} 35. Rf5 {[%clk 0:02:02.2]} 35... Nxe3 {[%clk 0:00:16.1]} 36.
Rf2 {[%clk 0:01:58.2]} 36... Nxc2 {[%clk 0:00:15.1]} 37. Rxc2 {[%clk 0:01:57.4]}
37... Rd3 {[%clk 0:00:12.6]} 38. Re2 {[%clk 0:01:55.4]} 38... Rxa3 {[%clk
0:00:11.4]} 39. Re8# {[%clk 0:01:54.3]} 1-0

[Event "Live Chess"]
[Site "Chess.com"]
[Date "2023.05.21"]
[Round "-"]
[White "raminguy"]
[Black "hturner40"]
[Result "0-1"]
[WhiteElo "1925"]
[BlackElo "1792"]
[TimeControl "300"]
[EndTime "8:38:28 PDT"]
[Termination "hturner40 won by resignation"]

1. d4 {[%clk 0:04:59.5]} 1... Nf6 {[%clk 0:04:57.6]} 2. Nc3 {[%clk 0:04:58.7]}
2... d5 {[%clk 0:04:54.9]} 3. Bf4 {[%clk 0:04:57.8]} 3... a6 {[%clk 0:04:52.9]}
4. e3 {[%clk 0:04:56.6]} 4... c5 {[%clk 0:04:51.8]} 5. dxc5 {[%clk 0:04:55.1]}
5... Qa5 {[%clk 0:04:49.2]} 6. a3 {[%clk 0:04:43.5]} 6... Qxc5 {[%clk
0:04:45.3]} 7. Nf3 {[%clk 0:04:40.1]} 7... Nc6 {[%clk 0:04:39.7]} 8. Bd3 {[%clk
0:04:37.7]} 8... Bg4 {[%clk 0:04:37.7]} 9. h3 {[%clk 0:04:34.2]} 9... Bxf3
{[%clk 0:04:34.9]} 10. Qxf3 {[%clk 0:04:32.7]} 10... e5 {[%clk 0:04:33.4]} 11.
Bg5 {[%clk 0:04:11.9]} 11... e4 {[%clk 0:04:17.6]} 12. Qf4 {[%clk 0:04:07.1]}
12... Bd6 {[%clk 0:04:14]} 13. Qf5 {[%clk 0:04:02.7]} 13... Ne7 {[%clk
0:04:10.9]} 0-1

[Event "Live Chess"]
[Site "Chess.com"]
[Date "2023.05.21"]
[Round "-"]
[White "CeladonFish"]
[Black "WilliamofOrange16th"]
[Result "0-1"]
[WhiteElo "1136"]
[BlackElo "1851"]
[TimeControl "300"]
[EndTime "8:38:32 PDT"]
[Termination "WilliamofOrange16th won by resignation"]

1. d4 {[%clk 0:04:56.8]} 1... d6 {[%clk 0:04:59]} 2. c4 {[%clk 0:04:55.2]} 2...
Nf6 {[%clk 0:04:58.3]} 3. Nc3 {[%clk 0:04:54]} 3... Nbd7 {[%clk 0:04:57.8]} 4.
Bf4 {[%clk 0:04:52.5]} 4... e5 {[%clk 0:04:57.7]} 5. dxe5 {[%clk 0:04:50.7]}
5... dxe5 {[%clk 0:04:57.6]} 6. Bg3 {[%clk 0:04:50]} 6... c6 {[%clk 0:04:56.6]}
7. Nf3 {[%clk 0:04:47.8]} 7... Qc7 {[%clk 0:04:51.1]} 8. Nd4 {[%clk 0:04:32.7]}
8... g6 {[%clk 0:04:43.3]} 9. Nf3 {[%clk 0:03:56.9]} 9... Bb4 {[%clk 0:04:40.4]}
10. Qb3 {[%clk 0:03:54.1]} 10... Ba5 {[%clk 0:04:28.5]} 11. e3 {[%clk
0:03:46.9]} 11... Ne4 {[%clk 0:04:26.5]} 12. Be2 {[%clk 0:03:33.2]} 12... f6
{[%clk 0:04:03.9]} 13. O-O {[%clk 0:03:26.7]} 13... Nxg3 {[%clk 0:04:02.5]} 14.
fxg3 {[%clk 0:03:23.4]} 14... Nc5 {[%clk 0:03:59.1]} 15. Qc2 {[%clk 0:03:20.1]}
15... O-O {[%clk 0:03:53.5]} 16. h4 {[%clk 0:03:11.5]} 16... Bb6 {[%clk
0:03:52.6]} 17. b4 {[%clk 0:02:54.7]} 17... Bf5 {[%clk 0:03:43]} 18. Qd2 {[%clk
0:02:42.5]} 18... Ne4 {[%clk 0:03:39]} 19. Nxe4 {[%clk 0:02:40.8]} 19... Bxe4
{[%clk 0:03:37.3]} 20. c5 {[%clk 0:02:37.3]} 20... Rad8 {[%clk 0:03:31.5]} 21.
Qc3 {[%clk 0:02:32.6]} 21... Rd7 {[%clk 0:03:20.4]} 22. cxb6 {[%clk 0:02:31.2]}
22... axb6 {[%clk 0:03:20.3]} 23. Qb3+ {[%clk 0:02:25.6]} 23... Bd5 {[%clk
0:03:18.6]} 24. Bc4 {[%clk 0:02:22.8]} 24... b5 {[%clk 0:03:17.4]} 25. Bxd5+
{[%clk 0:02:21.6]} 25... Rxd5 {[%clk 0:03:17.3]} 26. Rfd1 {[%clk 0:02:19.5]}
26... Kg7 {[%clk 0:03:15.1]} 27. Rxd5 {[%clk 0:02:17.7]} 27... cxd5 {[%clk
0:03:15]} 28. Qxd5 {[%clk 0:02:14.9]} 28... Qc3 {[%clk 0:03:14.1]} 29. Qd7+
{[%clk 0:02:11.4]} 29... Rf7 {[%clk 0:03:12.2]} 30. Qd2 {[%clk 0:02:07.3]} 30...
Qxa1+ {[%clk 0:03:10.7]} 31. Kh2 {[%clk 0:02:06.9]} 0-1

[Event "Live Chess"]
[Site "Chess.com"]
[Date "2023.05.21"]
[Round "-"]
[White "Ian-Morley"]
[Black "MartinWalker4"]
[Result "0-1"]
[WhiteElo "1103"]
[BlackElo "2077"]
[TimeControl "300"]
[EndTime "8:38:34 PDT"]
[Termination "MartinWalker4 won by resignation"]

1. e4 {[%clk 0:04:57.9]} 1... e5 {[%clk 0:04:58.3]} 2. Nf3 {[%clk 0:04:56.7]}
2... Nc6 {[%clk 0:04:56.6]} 3. Bc4 {[%clk 0:04:55.9]} 3... Bc5 {[%clk
0:04:54.4]} 4. O-O {[%clk 0:04:51.4]} 4... Nf6 {[%clk 0:04:50.6]} 5. Re1 {[%clk
0:04:26.8]} 5... d6 {[%clk 0:04:48]} 6. c3 {[%clk 0:04:25.5]} 6... Bg4 {[%clk
0:04:40.6]} 7. d3 {[%clk 0:04:24.5]} 7... O-O {[%clk 0:04:37.8]} 8. Nbd2 {[%clk
0:04:23.1]} 8... Ne7 {[%clk 0:04:18.1]} 9. Nf1 {[%clk 0:04:22]} 9... Ng6 {[%clk
0:04:15.8]} 10. Ng3 {[%clk 0:04:21]} 10... Qd7 {[%clk 0:03:58.4]} 11. b4 {[%clk
0:04:17.8]} 11... Bb6 {[%clk 0:03:56.4]} 12. a4 {[%clk 0:04:16.3]} 12... a6
{[%clk 0:03:53.8]} 13. a5 {[%clk 0:04:15.7]} 13... Ba7 {[%clk 0:03:52.1]} 14.
Nf5 {[%clk 0:04:14.4]} 14... Bxf5 {[%clk 0:03:47.3]} 15. exf5 {[%clk 0:04:13.4]}
15... Qxf5 {[%clk 0:03:46.1]} 16. d4 {[%clk 0:04:04.1]} 16... e4 {[%clk
0:03:30]} 17. Nd2 {[%clk 0:03:55.4]} 17... c5 {[%clk 0:03:21.3]} 18. dxc5 {[%clk
0:03:54.1]} 18... dxc5 {[%clk 0:03:19.6]} 19. bxc5 {[%clk 0:03:53.4]} 19... Bxc5
{[%clk 0:03:17.2]} 20. Nb3 {[%clk 0:03:49.9]} 20... Bxf2+ {[%clk 0:03:14.7]} 21.
Kh1 {[%clk 0:03:47.9]} 21... Bxe1 {[%clk 0:03:13.3]} 22. Qxe1 {[%clk 0:03:47.6]}
22... Rac8 {[%clk 0:03:11.4]} 23. Be2 {[%clk 0:03:42.2]} 23... Qe5 {[%clk
0:02:59.5]} 24. Nd4 {[%clk 0:03:38.8]} 24... Nd5 {[%clk 0:02:56.3]} 25. Bb2
{[%clk 0:03:30.4]} 25... Ngf4 {[%clk 0:02:50.3]} 26. g3 {[%clk 0:03:19.4]} 26...
Nxe2 {[%clk 0:02:46.4]} 27. Qxe2 {[%clk 0:03:18.5]} 27... Nxc3 {[%clk
0:02:45.4]} 28. Bxc3 {[%clk 0:03:17.4]} 28... Rxc3 {[%clk 0:02:43]} 29. Nc2
{[%clk 0:03:08]} 29... Rxc2 {[%clk 0:02:40.9]} 30. Qxc2 {[%clk 0:03:07.1]} 30...
Qxa1+ {[%clk 0:02:39.6]} 31. Kg2 {[%clk 0:03:06.8]} 31... Qxa5 {[%clk
0:02:37.2]} 32. Qxe4 {[%clk 0:03:05.1]} 32... b5 {[%clk 0:02:33]} 0-1